bitfinex-derivatives/quotes_ETHF0:USTF0_20250520
["timestamp","ask_amount","ask_price","bid_price","bid_amount"]
[1747724898566,3.2078,2535.5,2535.4,2.14616]
[1747724899166,2.39615,2535.5,2535.4,4.88616]
[1747724899968,0.00590888,2535.7,2535.4,4.88616]
[1747724899969,8.88e-06,2535.7,2535.6,0.7885]
[1747724900268,0.15126378,2536.1,2536.0,0.78838]
[1747724900565,0.15126378,2536.1,2536.0,19.36738]
[1747724900961,0.15126378,2536.1,2536.0,20.75038]
[1747724901165,3.78e-06,2536.1,2536.0,28.49038]
[1747724901471,0.2788084,2536.3,2536.2,0.78832]
[1747724901783,5.13e-06,2536.4,2536.3,0.78828]
[1747724902068,8.54e-06,2536.5,2536.4,0.78825]
[1747724902461,0.49032873,2536.6,2536.5,0.78822]
[1747724902662,0.49032873,2536.6,2536.5,3.99602]
[1747724902956,0.49032873,2536.6,2536.5,10.37902]
[1747724903155,0.49032873,2536.6,2536.5,2.74]
[1747724903367,5.03292873,2536.6,2536.5,3.52822]
[1747724903669,0.49032873,2536.6,2536.5,8.52822]
[1747724904161,0.49032873,2536.6,2536.5,9.80532]
[1747724904467,0.49032873,2536.6,2536.5,4.80532]
[1747724906365,0.65290744,2536.7,2536.6,0.78819]
[1747724906972,0.15290744,2536.7,2536.6,0.78819]
[1747724907165,0.00590888,2536.8,2536.7,0.78816]
[1747724907363,0.00590888,2536.8,2536.7,18.69316]
[1747724909067,8.88e-06,2536.8,2536.7,26.90096]
[1747724911767,1.59171529,2538.0,2537.9,0.78779]
[1747724911972,2.93751529,2538.0,2537.9,18.68779]
[1747724912270,2.93751529,2538.0,2537.9,21.89559]
[1747724912864,1.59171529,2538.0,2537.9,21.89559]
[1747724913366,1.7e-06,2538.2,2538.1,0.78773]
[1747724913567,2.30612936,2538.3,2537.9,26.1078]
[1747724913568,2.30612936,2538.3,2538.2,0.78769]
[1747724913764,0.82549936,2538.3,2538.2,3.99549]
[1747724914062,3.91292366,2538.6,2538.5,0.7876]
[1747724914268,3.91292366,2538.6,2538.5,3.9954]
[1747724914773,1.89998634,2538.6,2538.5,8.9954]
[1747724915269,0.90302634,2538.6,2538.5,11.7354]
[1747724915471,1.36348348,2538.8,2538.7,0.78754]
[1747724915661,1.41264463,2539.1,2539.0,0.78745]
[1747724915860,4.63e-06,2539.1,2539.0,3.99525]
[1747724916065,3.86703332,2539.2,2539.1,0.78742]
[1747724916270,1.3625,2539.7,2539.1,1.292]
[1747724916462,1.3625,2539.5,2539.4,3.2078]
[1747724916768,0.00393928,2539.7,2539.2,17.332]
[1747724917069,1.36643928,2539.7,2539.6,0.78726]
[1747724918272,0.00393928,2539.7,2539.6,0.78726]
[1747724918571,1.31493928,2539.7,2539.6,0.78726]
[1747724919668,0.00393928,2539.7,2539.6,0.78726]
[1747724920367,0.00393928,2539.7,2539.6,5.78726]
[1747724923868,0.30720594,2540.9,2539.6,5.78726]
[1747724923869,5.46448773,2543.3,2539.6,5.0]
[1747724924072,5.46448773,2543.3,2541.4,3.2078]
[1747724924073,1.3272,2541.8,2541.4,3.2078]
[1747724924272,1.3272,2541.8,2541.7,3.99441]
[1747724924474,9.45841773,2543.3,2541.8,1.96639]
[1747724924676,1.3215,2542.4,2542.3,3.99422]
[1747724924870,1.3215,2542.4,2542.3,20.73622]
[1747724925271,12.50827537,2543.2,2542.3,19.9498]
[1747724925477,1.3215,2543.1,2542.7,3.2078]
[1747724925870,1.3215,2543.1,2543.0,3.2078]
[1747724926074,1.3215,2543.1,2543.0,19.9498]
[1747724926273,4.0615,2543.1,2543.0,20.73601]
[1747724926675,2.74,2543.1,2543.0,3.99401]
[1747724926975,2.74,2543.1,2543.0,20.73601]
[1747724927280,12.50827537,2543.2,2543.1,0.78618]
[1747724927574,11.69059537,2543.2,2543.1,7.04008]
[1747724927779,8.45959537,2543.2,2543.1,7.04008]
[1747724927981,4.91401537,2543.2,2543.1,7.04008]
[1747724928173,4.41401537,2543.2,2543.0,2.74]
[1747724928373,1.2889,2543.1,2543.0,3.52621]
[1747724928580,1.2889,2543.1,2543.0,6.73401]
[1747724928781,4.41401537,2543.2,2543.1,0.78618]
[1747724929278,4.41401537,2543.2,2543.1,2.04008]
[1747724930083,5.78778014,2543.2,2543.0,20.72899]
[1747724930276,4.11376477,2543.2,2543.1,16.729]
[1747724930478,4.11376477,2543.2,2543.1,15.47603873]
[1747724930681,4.11376477,2543.2,2543.1,16.26221873]
[1747724931079,9.11376477,2543.2,2541.8,1.9664]
[1747724931378,4.11376477,2543.2,2542.5,16.729]
[1747724931584,0.7862,2543.1,2542.5,17.51536]
[1747724931785,0.78633,2542.6,2542.5,16.729]
[1747724932079,0.78628,2542.8,2542.5,16.729]
[1747724932384,0.78628,2542.8,2542.1,0.79237888]
[1747724932385,5.9478,2542.6,2542.1,0.00590888]
[1747724932686,1.327,2542.5,2542.1,0.00590888]
[1747724933187,4.067,2542.5,2542.1,0.79238888]
[1747724933386,4.067,2542.5,2542.1,0.00590888]
[1747724933680,4.067,2542.5,2542.2,0.78645]
[1747724933886,4.067,2542.5,2542.1,0.00590888]
[1747724934083,0.78641,2542.4,2542.1,0.00590888]
[1747724934271,1.3638,2542.3,2542.2,0.78646]
[1747724934876,1.3638,2542.3,2542.1,0.00590888]
[1747724935076,1.3638,2542.3,2542.1,0.79237888]
[1747724935276,4.1038,2542.3,2542.1,0.79237888]
[1747724935689,4.1038,2542.3,2542.2,0.78646]
[1747724936287,3.6038,2542.3,2542.2,16.95046]
[1747724936485,2.74,2542.3,2542.2,16.95046]
[1747724936681,0.08486477,2543.2,2543.1,0.78618]
[1747724936881,0.08486477,2543.2,2543.1,16.164]
[1747724937283,2.82486477,2543.2,2543.1,16.164]
[1747724937485,7.82486477,2543.2,2542.6,3.2078]
[1747724937684,2.82486477,2543.2,2542.6,3.2078]
[1747724937893,2.82486477,2543.2,2542.3,19.3718]
[1747724937894,0.78636,2542.6,2542.3,19.3718]
[1747724938184,2.74,2542.6,2542.3,19.3718]
[1747724939091,0.78637,2542.5,2542.3,19.3718]
[1747724939385,2.74,2542.6,2542.4,16.162]
[1747724939581,2.74,2542.6,2542.5,0.78636]
[1747724940399,2.74,2542.6,2542.5,16.162]
[1747724940789,2.74,2542.6,2542.5,16.94836]
[1747724941088,1.3992,2543.0,2542.9,0.78624]
[1747724941290,1.3992,2543.0,2542.9,3.2078]
[1747724942192,9.1392,2543.0,2542.6,16.94732]
[1747724942490,4.1392,2543.0,2542.8,3.2078]
[1747724943291,4.1392,2543.0,2542.8,3.99406]
[1747724943488,4.1392,2543.0,2542.9,0.78624]
[1747724943690,4.1392,2543.0,2542.8,3.99406]
[1747724944486,4.1392,2543.0,2542.8,3.2078]
[1747724944891,4.92543,2543.0,2542.8,3.2078]
[1747724945091,4.92544,2543.0,2542.9,16.159]
[1747724945290,4.22406477,2543.0,2542.9,16.159]
[1747724946095,5.01027477,2543.0,2542.9,16.159]
[1747724946391,12.43186477,2543.0,2542.3,3.2078]
[1747724946589,12.43186477,2543.0,2542.4,15.607]
[1747724946590,9.39745477,2543.0,2542.4,15.607]
[1747724946790,0.78634,2542.6,2542.4,15.607]
[1747724946987,1.4125,2542.5,2542.4,15.607]
[1747724947296,4.1525,2542.5,2542.4,15.607]
[1747724947492,4.93886,2542.5,2542.4,15.607]
[1747724947689,4.1525,2542.5,2542.4,15.607]
[1747724947894,9.93886,2542.5,2542.4,15.607]
[1747724948598,12.3603,2542.5,2542.1,0.00590888]
[1747724948791,0.7864,2542.4,2542.1,0.00590888]
[1747724948994,1.3696,2542.3,2542.1,0.79237888]
[1747724949292,4.89603,2542.3,2542.1,0.79237888]
[1747724949491,0.78646,2542.2,2542.1,0.00590888]
[1747724949689,2.15606,2542.2,2542.1,0.00590888]
[1747724949889,7.15606,2542.2,2542.1,0.00590888]
[1747724950198,9.89606,2542.2,2542.1,0.00590888]
[1747724950394,4.1096,2542.2,2542.1,0.00590888]
[1747724950595,4.1096,2542.2,2542.1,0.79239888]
[1747724950984,2.74,2542.2,2542.1,0.79239888]
[1747724951287,2.74,2542.2,2542.1,5.00590888]
[1747724951598,1.43472,2542.2,2542.1,3.99429]
[1747724951794,0.93472,2542.2,2542.1,3.2078]
[1747724952098,0.93472,2542.2,2542.1,18.8158]
[1747724952297,3.18536563,2542.2,2542.1,18.8158]
[1747724952600,0.93472,2542.2,2542.1,19.60229]
[1747724952991,3.18536563,2542.2,2542.1,18.8158]
[1747724953297,0.93472,2542.2,2542.1,19.60229]
[1747724953992,0.93472,2542.2,2542.1,24.60229]
[1747724954292,0.00590888,2542.4,2542.2,0.78645]
[1747724954493,2.25655451,2542.4,2542.1,3.2078]
[1747724954698,0.00590888,2542.4,2542.3,0.78642]
[1747724954892,0.00590888,2542.4,2542.3,2.20912]
[1747724955194,2.74590888,2542.4,2542.3,7.20912]
[1747724955403,1.60888888,2542.4,2542.3,7.20912]
[1747724955996,1.60888888,2542.4,2542.3,2.20912]
[1747724956202,1.10888888,2542.4,2542.3,2.20912]
[1747724956395,1.10888888,2542.4,2542.3,16.5007]
[1747724956791,1.10888888,2542.4,2542.3,17.28712]
[1747724959307,3.35953451,2542.4,2542.3,15.078]
[1747724959509,8.35953451,2542.4,2542.3,15.077]
[1747724959796,6.10888888,2542.4,2542.1,0.95715437]
[1747724959997,6.10888888,2542.4,2542.1,16.03415437]
[1747724959998,2.14895,2542.3,2542.1,16.03415437]
[1747724960206,0.78652,2542.0,2541.9,15.08290888]
[1747724960402,0.78652,2542.0,2541.9,0.00590888]
[1747724960599,0.7867,2541.4,2540.9,3.2078]
[1747724960801,3.99449,2541.5,2541.1,0.78678]
[1747724960992,3.99449,2541.5,2541.0,15.077]
[1747724960993,1.306,2541.3,2541.2,0.78676]
[1747724961197,4.046,2541.3,2541.2,0.78676]
[1747724961609,4.046,2541.3,2541.0,16.44430888]
[1747724961810,9.046,2541.3,2540.8,3.2078]
[1747724962107,3.2078,2541.2,2540.6,0.78693]
[1747724962309,1.306,2541.1,2540.8,0.78688]
[1747724962514,1.306,2541.1,2540.9,0.78685]
[1747724962800,1.306,2541.1,2540.9,0.78684]
[1747724963107,4.046,2541.1,2541.0,0.78683]
[1747724963405,4.046,2541.1,2540.9,0.78684]
[1747724964008,4.046,2541.1,2541.0,0.78683]
[1747724966005,4.046,2541.1,2540.9,14.551]
[1747724967414,4.046,2541.1,2540.9,15.33786]
[1747724967709,4.046,2541.1,2540.9,14.551]
[1747724968205,4.046,2541.1,2540.9,12.79507722]
[1747724968408,9.046,2541.1,2540.7,0.00590888]
[1747724968607,3.2078,2540.9,2540.7,0.00590888]
[1747724968914,2.74,2541.1,2541.0,0.78683]
[1747724969213,3.2078,2541.2,2540.8,1.3258]
[1747724969410,3.2078,2541.2,2540.9,0.78685]
[1747724969717,1.3338,2541.1,2540.9,0.78684]
[1747724970013,2.1206,2541.1,2541.0,14.553]
[1747724970314,0.78689,2540.8,2540.7,0.00590888]
[1747724970516,3.99467,2540.9,2540.7,0.00590888]
[1747724970711,1.4195,2540.8,2540.7,0.00590888]
[1747724971109,1.4195,2540.8,2540.7,0.79282888]
[1747724971309,4.1595,2540.8,2540.7,0.00590888]
[1747724971607,4.94639,2540.8,2540.7,0.00590888]
[1747724971811,4.1595,2540.8,2540.7,0.00590888]
[1747724972216,4.94639,2540.8,2540.7,0.00590888]
[1747724972919,4.1595,2540.8,2540.7,0.00590888]
[1747724973120,4.94639,2540.8,2540.7,0.00590888]
[1747724973314,4.94639,2540.8,2540.5,3.99477]
[1747724973315,4.94639,2540.8,2540.5,0.78697]
[1747724974017,0.78692,2540.7,2540.4,15.33999]
[1747724974239,1.4714,2540.6,2540.5,0.78698]
[1747724974622,1.4714,2540.6,2540.4,16.7726]
[1747724974813,1.4714,2540.6,2540.4,15.9856]
[1747724975116,4.2114,2540.6,2540.4,16.77259]
[1747724975520,0.78698,2540.5,2540.4,14.553]
[1747724975818,0.78701,2540.4,2540.3,0.00590888]
[1747724976213,3.52701,2540.4,2540.3,0.00590888]
[1747724977018,0.78704,2540.3,2540.2,13.80828588]
[1747724977224,2.29184,2540.3,2540.2,13.80828588]
[1747724978017,0.78713,2540.1,2539.8,0.78717]
[1747724978321,2.74,2540.1,2540.0,0.78714]
[1747724978524,2.24,2540.1,2540.0,3.99494]
[1747724978722,2.22818224,2540.1,2540.0,8.99494]
[1747724979026,1.72818224,2540.1,2540.0,8.99494]
[1747724979226,0.08486477,2540.8,2540.7,0.78692]
[1747724979525,0.08486477,2540.8,2540.7,18.01672]
[1747724981325,0.08486477,2540.8,2540.7,23.01672]
[1747724983129,4.77e-06,2540.8,2540.7,23.01672]
[1747724983545,3.65e-06,2541.0,2540.7,22.2298]
[1747724983727,3.65e-06,2541.0,2540.9,0.78686]
[1747724984127,3.65e-06,2541.0,2540.9,5.78686]
[1747724985636,3.65e-06,2541.0,2540.9,14.80786]
[1747724986339,3.65e-06,2541.0,2540.9,19.80786]
[1747724988039,3.65e-06,2541.0,2540.9,14.80786]
[1747724989238,2.74000365,2541.0,2540.9,14.80786]
[1747724989432,2.74000365,2541.0,2540.8,1.4258]
[1747724989636,2.74000365,2541.0,2540.9,14.29986]
[1747724989948,2.82486842,2541.0,2540.9,14.29986]
[1747724990134,0.78694,2540.7,2540.1,3.2078]
[1747724990332,3.2078,2540.7,2540.1,3.2078]
[1747724990532,1.4149,2540.6,2540.1,3.2078]
[1747724990733,1.4149,2540.6,2540.5,0.78698]
[1747724991141,2.74,2540.6,2540.4,3.2078]
[1747724991343,2.74,2540.6,2540.5,15.68868]
[1747724991841,2.74,2540.6,2540.5,2.17568]
[1747724992034,2.74,2540.6,2540.5,15.68868]
[1747724992236,1.4527,2540.9,2540.8,0.78689]
[1747724992436,1.4527,2540.9,2540.5,14.9017]
[1747724992637,1.4527,2540.9,2540.6,0.78694]
[1747724993138,4.1927,2540.9,2540.6,0.78694]
[1747724993340,4.1927,2540.9,2540.7,0.78691]
[1747724993848,4.1927,2540.9,2540.8,0.78689]
[1747724994144,1.4527,2540.9,2540.8,0.78689]
[1747724994343,0.08486842,2541.0,2540.9,0.78686]
[1747724995737,3.2078,2541.5,2541.3,0.78673]
[1747724996052,1.27115096,2541.7,2541.3,14.30073]
[1747724996247,0.97321504,2541.6,2541.5,0.78667]
[1747724996750,0.47321504,2541.6,2541.5,0.78667]
[1747724997046,1.27705984,2541.8,2541.7,0.78661]
[1747724997240,1.27705984,2541.8,2541.5,1.499]
[1747724997241,1.27705984,2541.8,2541.6,0.78663]
[1747724997551,1.27705984,2541.8,2541.7,0.78661]
[1747725001161,0.00590888,2541.8,2541.7,0.78661]
[1747725001351,1.4221,2542.2,2542.1,0.78649]
[1747725001651,1.4221,2542.2,2542.1,12.967]
[1747725001845,1.4221,2542.2,2541.9,0.78654]
[1747725002147,4.1621,2542.2,2542.0,13.74527136]
[1747725002366,4.1621,2542.2,2542.1,0.78649]
[1747725002850,4.1621,2542.2,2542.1,2.21919]
[1747725003248,1.4221,2542.2,2542.1,2.21919]
[1747725004451,0.00590888,2542.4,2542.1,4.6405]
[1747725004751,0.00590888,2542.4,2542.3,0.78642]
[1747725005357,0.00590888,2542.4,2542.2,1.4144]
[1747725005552,0.00590888,2542.4,2542.1,3.2078]
[1747725006052,4.00011888,2542.4,2542.0,13.75152]
[1747725006258,4.00011888,2542.4,2542.1,0.78646]
[1747725006259,0.08486477,2542.2,2542.1,0.78646]
[1747725006960,0.08486477,2542.2,2542.1,2.10786]
[1747725009256,1.427,2542.7,2542.6,0.78633]
[1747725009460,1.427,2542.7,2542.6,13.75033]
[1747725009962,4.13385096,2543.2,2542.7,0.7863]
[1747725010257,4.5573,2543.1,2543.0,0.78621]
[1747725011551,1.27115096,2543.2,2543.1,0.78618]
[1747725011760,0.77115096,2543.2,2543.1,2.16938]
[1747725012147,0.27115096,2543.2,2543.1,2.16938]
[1747725012557,0.27115096,2543.2,2543.1,7.16938]
[1747725012752,9.6e-07,2543.2,2543.1,7.16938]
[1747725013057,2.29258398,2543.8,2543.7,0.78599]
[1747725013249,2.29258398,2543.8,2543.7,13.74799]
[1747725013451,2.29258398,2543.8,2543.7,17.72620155]
[1747725013655,0.12007398,2543.8,2543.7,18.51219155]
[1747725013858,9.83579211,2544.1,2544.0,0.7859]
[1747725014052,8.94104211,2544.1,2544.0,3.9937]
[1747725014255,5.42987365,2544.4,2544.3,0.78581]
[1747725014466,5.42987365,2544.4,2544.3,43.63061]
[1747725014653,5.42987365,2544.4,2544.3,53.38281]
[1747725015266,8.16987365,2544.4,2544.3,53.38281]
[1747725015449,4.3289387,2544.4,2544.3,53.38281]
[1747725015853,4.3289387,2544.4,2544.3,40.42281]
[1747725016151,2.74,2544.4,2544.3,53.38281]
[1747725017761,2.74,2544.4,2544.3,54.74421]
[1747725018459,2.74,2544.4,2544.1,0.00589681]
[1747725018460,7.74,2544.4,2544.2,12.452]
[1747725018667,1.3274,2544.3,2544.2,12.452]
[1747725018961,1.3274,2544.3,2544.2,13.23784]
[1747725019163,1.3274,2544.3,2544.2,14.54674]
[1747725019563,0.08486477,2544.4,2544.3,0.78581]
[1747725020054,0.08486477,2544.4,2544.3,2.09471]
[1747725020466,1.3274,2544.8,2544.7,0.78568]
[1747725021167,4.0674,2544.8,2544.7,0.78568]
[1747725022264,2.74,2544.8,2544.7,0.78568]
[1747725023274,2.24,2544.8,2544.7,48.61148]
[1747725023568,0.78529,2546.0,2545.1,1.96386]
[1747725023770,3.2078,2545.6,2545.2,12.449]
[1747725024064,1.3788,2545.5,2545.3,12.449]
[1747725025171,9.90424,2545.5,2545.4,12.449]
[1747725025358,4.90424,2545.5,2545.4,12.449]
[1747725025561,9.1188,2545.5,2545.4,12.449]
[1747725026067,9.90424,2545.5,2545.4,12.449]
[1747725026367,9.1188,2545.5,2545.4,12.449]
[1747725026564,9.90424,2545.5,2545.4,12.449]
[1747725026865,9.90424,2545.5,2545.1,0.00589681]
[1747725026866,0.78553,2545.2,2545.1,0.00589681]
[1747725027062,3.2078,2545.3,2545.1,12.45289681]
[1747725027264,2.20103,2545.2,2545.1,12.45289681]
[1747725027461,1.4155,2545.2,2545.1,0.79145681]
[1747725027660,1.4155,2545.2,2545.1,13.23845681]
[1747725028268,4.1555,2545.2,2545.1,13.23845681]
[1747725029662,4.94103,2545.2,2545.1,12.45289681]
[1747725029861,4.1555,2545.2,2545.1,13.23845681]
[1747725030068,2.74,2545.2,2545.1,13.23745681]
[1747725031365,2.24,2545.2,2545.1,13.23745681]
[1747725031565,1.7448,2545.2,2545.1,14.66305681]
[1747725032965,1.2448,2545.2,2545.1,14.66305681]
[1747725033270,4.5574,2545.9,2545.3,0.7855]
[1747725033271,2.74,2545.4,2545.3,0.7855]
[1747725033473,2.74,2545.4,2545.3,3.9933]
[1747725033766,2.74,2545.4,2545.3,8.9933]
[1747725033970,2.74,2545.4,2545.3,10.4102]
[1747725034265,3.2078,2546.3,2545.5,1.96359]
[1747725034471,3.2078,2546.3,2545.7,1.96344]
[1747725034671,3.2078,2546.3,2545.8,12.445]
[1747725034968,3.2078,2546.3,2546.2,0.78522]
[1747725035163,2.74,2546.3,2546.2,0.78522]
[1747725035862,2.74,2546.3,2546.2,5.78522]
[1747725036069,2.74,2546.3,2546.2,0.78522]
[1747725036257,2.74,2546.3,2546.2,13.22822]
[1747725036667,2.74,2546.3,2546.2,14.64512]
[1747725036872,2.74,2546.3,2546.0,3.99307]
[1747725037069,3.2078,2546.1,2545.9,39.6]
[1747725037369,1.4248,2546.0,2545.6,11.954]
[1747725037865,0.78534,2545.9,2545.6,11.954]
[1747725038168,1.4248,2545.8,2545.6,11.954]
[1747725038673,1.4248,2545.8,2545.1,0.00589681]
[1747725038674,0.08486477,2545.4,2545.1,0.00589681]
[1747725038874,3.2078,2545.2,2545.1,0.00589681]
[1747725039075,5.9478,2545.2,2545.1,11.95789681]
[1747725039268,5.9478,2545.2,2545.1,12.74345681]
[1747725039972,5.9478,2545.2,2545.1,11.95789681]
[1747725041073,5.9478,2545.2,2545.1,12.74345681]
[1747725041572,2.74,2545.2,2545.1,12.74345681]
[1747725041768,2.74,2545.2,2545.1,11.95789681]
[1747725042475,2.74,2545.2,2545.1,12.74345681]
[1747725042668,4.1513,2545.2,2545.1,12.74345681]
[1747725043973,2.74,2545.2,2545.1,12.74345681]
[1747725045278,2.24,2545.2,2545.1,12.74345681]
[1747725045476,1.74,2545.2,2545.1,12.74345681]
[1747725046772,0.08486477,2545.4,2545.3,0.7855]
[1747725047165,6.03266477,2545.4,2545.3,11.952]
[1747725047877,6.81813477,2545.4,2545.3,11.952]
[1747725048085,11.81813477,2545.4,2545.3,11.952]
[1747725048271,11.03266477,2545.4,2545.3,11.952]
[1747725048780,12.42816477,2545.4,2545.3,11.952]
[1747725048977,13.21363477,2545.4,2545.3,11.952]
[1747725049172,13.21363477,2545.4,2545.1,0.00589681]
[1747725049380,0.78553,2545.2,2545.1,0.00589681]
[1747725049881,5.78553,2545.2,2545.1,0.00589681]
[1747725050180,0.78556,2545.1,2544.7,11.952]
[1747725050383,4.5688,2545.0,2544.8,0.78565]
[1747725050680,4.5688,2545.0,2544.7,12.73766]
[1747725050878,4.5688,2545.0,2544.0,1.96475]
[1747725050879,0.7857,2544.7,2544.2,39.594]
[1747725051178,0.78574,2544.5,2544.2,39.59989681]
[1747725051385,1.361,2544.4,2544.3,0.7858]
[1747725051984,4.5688,2544.4,2544.3,0.7858]
[1747725052169,7.3088,2544.4,2544.3,0.7858]
[1747725054175,8.09458,2544.4,2544.2,11.95789681]
[1747725054479,8.09459,2544.4,2544.2,11.95789681]
[1747725054676,7.3088,2544.4,2544.2,12.74373681]
[1747725054880,7.3088,2544.4,2544.2,11.95789681]
[1747725055370,8.09458,2544.4,2544.2,11.95789681]
[1747725055572,7.3088,2544.4,2544.2,11.95789681]
[1747725055978,4.101,2544.4,2544.2,11.95789681]
[1747725056173,7.3088,2544.4,2544.2,11.95789681]
[1747725056371,7.3088,2544.4,2544.2,10.70528063]
[1747725057375,0.78588,2544.1,2544.0,0.00589681]
[1747725057674,3.2078,2544.1,2544.0,0.00589681]
[1747725057881,3.2078,2544.1,2544.0,0.79179681]
[1747725058071,4.101,2544.4,2544.3,0.78581]
[1747725058072,2.74,2544.4,2544.3,0.78581]
[1747725058272,4.18599651,2544.6,2544.5,0.78574]
[1747725058585,0.97819651,2544.6,2544.5,12.25174]
[1747725059273,3.71819651,2544.6,2544.5,12.25174]
[1747725060080,3.71819651,2544.6,2544.5,11.466]
[1747725060684,3.71819651,2544.6,2544.5,12.25174]
[1747725061178,3.71819651,2544.6,2544.5,11.466]
[1747725061375,8.47789651,2544.6,2544.0,11.47289681]
[1747725061575,0.78587,2544.1,2544.0,11.47289681]
[1747725061977,1.5519,2544.2,2544.0,11.47289681]
[1747725062174,4.2919,2544.2,2544.1,2.27757]
[1747725062380,2.74,2544.2,2544.1,2.27757]
[1747725062581,2.74,2544.2,2544.1,1.4917]
[1747725062979,2.74,2544.2,2544.0,12.25877681]
[1747725063186,2.74,2544.2,2544.0,11.47289681]
[1747725063187,3.52585,2544.2,2544.0,11.47289681]
[1747725063688,5.07775,2544.2,2544.0,11.47289681]
[1747725063891,5.07775,2544.2,2544.0,12.96459681]
[1747725064182,0.78587,2544.1,2544.0,12.96459681]
[1747725064382,2.22387,2544.1,2544.0,11.47289681]
[1747725064775,1.438,2544.1,2544.0,11.47289681]
[1747725065178,4.178,2544.1,2544.0,12.25879681]
[1747725066583,4.178,2544.1,2544.0,11.47289681]
[1747725066784,4.178,2544.1,2544.0,12.25879681]
[1747725067184,2.74,2544.1,2544.0,12.25879681]
[1747725068985,2.74,2544.1,2544.0,11.47289681]
[1747725069180,5.06017,2544.1,2544.0,0.00589681]
[1747725069387,4.2743,2544.1,2544.0,0.00589681]
[1747725069587,5.06017,2544.1,2544.0,0.00589681]
[1747725069783,4.2743,2544.1,2544.0,0.00589681]
[1747725069987,10.06017,2544.1,2544.0,0.00589681]
[1747725070290,5.06017,2544.1,2544.0,0.00589681]
[1747725070492,4.2743,2544.1,2544.0,0.00589681]
[1747725070795,5.06017,2544.1,2544.0,0.00589681]
[1747725073984,5.06017,2544.1,2544.0,0.78433303]
[1747725074196,4.2743,2544.1,2544.0,0.78433303]
[1747725074894,0.78593,2544.0,2543.9,0.78592]
[1747725075194,1.4252,2544.0,2543.8,0.79184681]
[1747725075396,3.99373,2543.9,2543.8,0.00589681]
[1747725076188,6.73373,2543.9,2543.8,0.00589681]
[1747725077989,5.9478,2543.9,2543.8,0.79185681]
[1747725078190,2.73410319,2543.9,2543.8,8.99965681]
[1747725078394,2.23410319,2543.9,2543.8,5.79185681]
[1747725078700,1.73410319,2543.9,2543.8,2.32935681]
[1747725078897,1.73410319,2543.9,2543.8,8.87085681]
[1747725079396,0.73744022,2544.2,2544.1,0.78587]
[1747725079596,0.73744022,2544.2,2544.1,12.25587]
[1747725080292,0.65257545,2544.2,2544.1,17.25587]
[1747725081010,0.97819651,2544.4,2544.3,0.78581]
[1747725081186,0.00585655,2544.7,2544.6,0.78571]
[1747725081389,0.00585655,2544.7,2544.6,12.25571]
[1747725081589,2.74,2544.8,2544.7,0.78568]
[1747725081793,2.74,2544.8,2544.7,5.44728]
[1747725081794,2.24,2544.8,2544.7,5.44728]
[1747725082196,2.24,2544.8,2544.7,2.23948]
[1747725082388,2.24,2544.8,2544.7,1.4538]
[1747725082593,3.02565,2544.8,2544.7,1.4538]
[1747725082799,3.7126,2544.8,2544.7,12.9218]
[1747725083096,3.7126,2544.8,2544.7,13.70748]
[1747725083600,2.24,2544.8,2544.7,13.70748]
[1747725083801,0.65090096,2544.9,2544.8,0.78565]
[1747725083996,0.65090096,2544.9,2544.8,2.33865]
[1747725084300,3.39090096,2544.9,2544.8,2.33865]
[1747725084498,3.39090096,2544.9,2544.8,7.33865]
[1747725084901,3.39090096,2544.9,2544.8,2.33865]
[1747725085596,3.39090096,2544.9,2544.8,1.553]
[1747725085794,8.11890096,2544.9,2544.8,1.553]
[1747725085992,7.468,2544.9,2544.8,1.553]
[1747725086207,7.468,2544.9,2544.7,11.97467]
[1747725086399,7.468,2544.9,2544.7,11.189]
[1747725086596,4.2602,2544.9,2544.8,0.78565]
[1747725089099,7.468,2544.9,2544.8,0.78565]
[1747725089404,7.468,2544.9,2544.8,2.21455]
[1747725089698,5.9478,2544.9,2544.8,2.21455]
[1747725090691,5.9478,2544.9,2544.7,11.97467]
[1747725090896,1.4804,2544.8,2544.6,11.189]
[1747725091102,2.26605,2544.8,2544.6,11.189]
[1747725091303,5.00605,2544.8,2544.6,11.189]
[1747725091898,4.2204,2544.8,2544.6,11.189]
[1747725092091,4.2204,2544.8,2544.7,0.78568]
[1747725092294,4.2204,2544.8,2544.6,11.97471]
[1747725092491,4.2204,2544.8,2544.6,0.7857]
[1747725092802,4.2204,2544.8,2544.7,0.78568]
[1747725095099,0.7857,2544.7,2544.3,3.2078]
[1747725095399,1.5863,2544.6,2544.5,0.78574]
[1747725095903,2.82486477,2544.8,2544.7,0.78568]
[1747725096103,4.41116477,2544.8,2544.7,0.78568]
[1747725096305,4.41116477,2544.8,2544.7,11.97468]
[1747725097497,2.82486477,2544.8,2544.7,11.97468]
[1747725097799,2.95010555,2544.8,2544.7,11.97468]
[1747725097998,2.95010555,2544.8,2544.7,11.5079522]
[1747725099096,4.41170555,2544.8,2544.7,11.5079522]
[1747725099301,1.54646477,2544.8,2544.7,11.5079522]
[1747725099704,1.54646477,2544.8,2544.7,0.78568]
[1747725100205,1.54646477,2544.8,2544.7,2.26218]
[1747725101007,0.08486477,2544.8,2544.7,2.26218]
[1747725103202,4.7207,2544.9,2544.8,0.78565]
[1747725103402,4.7207,2544.9,2544.8,2.37035]
[1747725104204,0.78568,2544.8,2544.4,11.188]
[1747725104409,2.26409,2544.7,2544.4,12.696]
[1747725104610,2.74,2544.9,2544.8,0.78565]
[1747725104809,4.2184,2544.9,2544.8,0.78565]
[1747725105126,4.2184,2544.9,2544.6,1.508]
[1747725105409,4.2184,2544.9,2544.8,0.78565]
[1747725105410,2.24,2544.9,2544.8,0.78565]
[1747725105613,1.7448,2544.9,2544.8,0.78565]